[Event "*** SCC Grand Prix: Titled Tuesday Blitz"]
[Site "Chess.com"]
[Date "2020.09.08"]
[Round "4"]
[White "Shubinkirill2003"]
[Black "Gvetadze"]
[Result "1-0"]
[WhiteElo "2643"]
[BlackElo "2438"]
[TimeControl "180+1"]
[EndTime "10:40:17 PDT"]
[Termination "Shubinkirill2003 won on time"]

1. e4 {[%clk 0:03:00.9]} 1... c5 {[%clk 0:03:00.9]} 2. Nf3 {[%clk 0:03:00.6]}
2... g6 {[%clk 0:03:01.3]} 3. c4 {[%clk 0:02:58.1]} 3... Bg7 {[%clk 0:03:00.5]}
4. d4 {[%clk 0:02:58.6]} 4... cxd4 {[%clk 0:03:01.2]} 5. Nxd4 {[%clk 0:02:59.5]}
5... Nc6 {[%clk 0:03:01.7]} 6. Be3 {[%clk 0:02:59.7]} 6... Nf6 {[%clk
0:03:01.9]} 7. Nc3 {[%clk 0:02:59.9]} 7... O-O {[%clk 0:03:00.8]} 8. f3 {[%clk
0:02:59.6]} 8... d6 {[%clk 0:03:00]} 9. Qd2 {[%clk 0:02:59.5]} 9... Nxd4 {[%clk
0:02:59.2]} 10. Bxd4 {[%clk 0:02:59]} 10... Nd7 {[%clk 0:02:59.1]} 11. Be3
{[%clk 0:02:56.5]} 11... a5 {[%clk 0:02:58.9]} 12. b3 {[%clk 0:02:50.7]} 12...
Nc5 {[%clk 0:02:58.9]} 13. Rc1 {[%clk 0:02:48.2]} 13... Bd7 {[%clk 0:02:56.7]}
14. Be2 {[%clk 0:02:43.6]} 14... Bc6 {[%clk 0:02:56.2]} 15. O-O {[%clk
0:02:37.1]} 15... e6 {[%clk 0:02:55.8]} 16. Bh6 {[%clk 0:02:23]} 16... Qe7
{[%clk 0:02:30.2]} 17. Bxg7 {[%clk 0:02:19.7]} 17... Kxg7 {[%clk 0:02:30]} 18.
Kh1 {[%clk 0:02:17.9]} 18... f5 {[%clk 0:02:27.2]} 19. exf5 {[%clk 0:02:01.8]}
19... Rxf5 {[%clk 0:02:26.7]} 20. Rce1 {[%clk 0:02:00.2]} 20... Qf8 {[%clk
0:02:07.2]} 21. Bd3 {[%clk 0:01:54.4]} 21... Rf4 {[%clk 0:01:57.8]} 22. Bc2
{[%clk 0:01:38.8]} 22... Rd8 {[%clk 0:01:52.4]} 23. a3 {[%clk 0:01:32]} 23... e5
{[%clk 0:01:44.1]} 24. b4 {[%clk 0:01:17.4]} 24... axb4 {[%clk 0:01:43.3]} 25.
axb4 {[%clk 0:01:18.3]} 25... Rd4 {[%clk 0:01:30.9]} 26. Qe3 {[%clk 0:01:08.9]}
26... Ne6 {[%clk 0:01:28.8]} 27. Bb3 {[%clk 0:01:07]} 27... Nf4 {[%clk
0:01:25.8]} 28. Rd1 {[%clk 0:01:06.3]} 28... Qf6 {[%clk 0:01:13.8]} 29. b5
{[%clk 0:01:05.5]} 29... Rxd1 {[%clk 0:00:34.1]} 30. Rxd1 {[%clk 0:01:03.8]}
30... Qg5 {[%clk 0:00:28.1]} 31. Qf2 {[%clk 0:00:53]} 31... Be8 {[%clk
0:00:19.9]} 32. Ne4 {[%clk 0:00:52.2]} 32... Qe7 {[%clk 0:00:19.7]} 33. Qb6
{[%clk 0:00:45.1]} 33... Bf7 {[%clk 0:00:12.2]} 34. Rxd6 {[%clk 0:00:34.4]}
34... Ra8 {[%clk 0:00:12.3]} 35. Rd1 {[%clk 0:00:21.6]} 35... Ra3 {[%clk
0:00:11]} 36. Rb1 {[%clk 0:00:16.4]} 36... Qb4 {[%clk 0:00:10.9]} 37. Qc5 {[%clk
0:00:09.8]} 37... Qa5 {[%clk 0:00:03.9]} 38. Qxe5+ {[%clk 0:00:09.2]} 38... Kg8
{[%clk 0:00:04.2]} 39. Qxf4 {[%clk 0:00:05.7]} 39... Rxb3 {[%clk 0:00:04.1]} 40.
Rg1 {[%clk 0:00:05.6]} 40... Qb4 {[%clk 0:00:01.6]} 41. Qe5 {[%clk 0:00:04.7]}
1-0

[Event "*** SCC Grand Prix: Titled Tuesday Blitz"]
[Site "Chess.com"]
[Date "2020.09.08"]
[Round "4"]
[White "dbrankovic68"]
[Black "Jenia84"]
[Result "0-1"]
[WhiteElo "2430"]
[BlackElo "2314"]
[TimeControl "180+1"]
[EndTime "10:40:17 PDT"]
[Termination "Jenia84 won on time"]

1. e4 {[%clk 0:03:00.2]} 1... e5 {[%clk 0:02:59.3]} 2. Nf3 {[%clk 0:03:00]} 2...
Nc6 {[%clk 0:02:59.6]} 3. c3 {[%clk 0:03:00.4]} 3... Nf6 {[%clk 0:02:57.5]} 4.
d4 {[%clk 0:03:00.1]} 4... exd4 {[%clk 0:02:56.2]} 5. e5 {[%clk 0:02:59.9]} 5...
Ne4 {[%clk 0:02:55.7]} 6. cxd4 {[%clk 0:02:59.5]} 6... d5 {[%clk 0:02:55.7]} 7.
Bd3 {[%clk 0:02:48.7]} 7... Bb4+ {[%clk 0:02:54]} 8. Nbd2 {[%clk 0:02:47.1]}
8... Bf5 {[%clk 0:02:48.3]} 9. Qe2 {[%clk 0:02:27.4]} 9... Nxd2 {[%clk
0:02:26.8]} 10. Bxd2 {[%clk 0:02:27]} 10... Bxd3 {[%clk 0:02:24.8]} 11. Qxd3
{[%clk 0:02:27.1]} 11... Bxd2+ {[%clk 0:02:24.1]} 12. Qxd2 {[%clk 0:02:24.2]}
12... O-O {[%clk 0:02:23]} 13. O-O {[%clk 0:02:24.1]} 13... f6 {[%clk
0:02:22.8]} 14. Rfe1 {[%clk 0:02:20.4]} 14... fxe5 {[%clk 0:02:14.2]} 15. Nxe5
{[%clk 0:02:20.1]} 15... Nxe5 {[%clk 0:02:13.1]} 16. Rxe5 {[%clk 0:02:20]} 16...
c6 {[%clk 0:02:10.6]} 17. Rae1 {[%clk 0:02:19.5]} 17... Qf6 {[%clk 0:01:54.3]}
18. g3 {[%clk 0:02:14.3]} 18... h6 {[%clk 0:01:51.3]} 19. f4 {[%clk 0:02:13.9]}
19... a5 {[%clk 0:01:35.8]} 20. Qd3 {[%clk 0:02:06.3]} 20... a4 {[%clk
0:01:29.5]} 21. Kg2 {[%clk 0:01:56.5]} 21... Rac8 {[%clk 0:01:05.2]} 22. h4
{[%clk 0:01:55.3]} 22... b5 {[%clk 0:01:03.5]} 23. h5 {[%clk 0:01:43.3]} 23...
Rc7 {[%clk 0:01:03.6]} 24. Kf3 {[%clk 0:01:30]} 24... Qf7 {[%clk 0:01:01.8]} 25.
Kg4 {[%clk 0:01:24.2]} 25... Qd7+ {[%clk 0:01:00.9]} 26. f5 {[%clk 0:01:13.1]}
26... Qd8 {[%clk 0:00:58.5]} 27. Qe3 {[%clk 0:01:11.6]} 27... Rcf7 {[%clk
0:00:56.9]} 28. Re8 {[%clk 0:00:55.6]} 28... Qd7 {[%clk 0:00:46.3]} 29. Rxf8+
{[%clk 0:00:54.9]} 29... Kxf8 {[%clk 0:00:40]} 30. Qe5 {[%clk 0:00:49]} 30...
Re7 {[%clk 0:00:19.5]} 31. Qxe7+ {[%clk 0:00:27.5]} 31... Qxe7 {[%clk
0:00:20.4]} 32. Rxe7 {[%clk 0:00:27.3]} 32... Kxe7 {[%clk 0:00:21.3]} 33. Kf4
{[%clk 0:00:27.7]} 33... Kf6 {[%clk 0:00:21.4]} 34. a3 {[%clk 0:00:27.8]} 34...
Kf7 {[%clk 0:00:20.3]} 35. Ke5 {[%clk 0:00:27.5]} 35... Ke7 {[%clk 0:00:20.5]}
36. g4 {[%clk 0:00:24.2]} 36... Kd7 {[%clk 0:00:18.6]} 37. g5 {[%clk 0:00:15.5]}
37... hxg5 {[%clk 0:00:18.1]} 38. f6 {[%clk 0:00:15.8]} 38... gxf6+ {[%clk
0:00:12.4]} 39. Kxf6 {[%clk 0:00:16]} 39... g4 {[%clk 0:00:13]} 40. h6 {[%clk
0:00:16.6]} 40... g3 {[%clk 0:00:13.8]} 41. h7 {[%clk 0:00:17.3]} 41... g2
{[%clk 0:00:14.6]} 42. h8=Q {[%clk 0:00:18]} 42... g1=Q {[%clk 0:00:14.8]} 43.
Qh7+ {[%clk 0:00:11.4]} 43... Kc8 {[%clk 0:00:14.6]} 44. Ke6 {[%clk 0:00:10.3]}
44... Qxd4 {[%clk 0:00:11.3]} 0-1

[Event "*** SCC Grand Prix: Titled Tuesday Blitz"]
[Site "Chess.com"]
[Date "2020.09.08"]
[Round "4"]
[White "Konavets"]
[Black "Harsha_Bharathakoti"]
[Result "1-0"]
[WhiteElo "3072"]
[BlackElo "2807"]
[TimeControl "180+1"]
[EndTime "10:40:18 PDT"]
[Termination "Konavets won by resignation"]

1. d4 {[%clk 0:03:00.9]} 1... d5 {[%clk 0:02:58.5]} 2. Nf3 {[%clk 0:03:00.4]}
2... Nf6 {[%clk 0:02:58.6]} 3. Bf4 {[%clk 0:03:00.8]} 3... e6 {[%clk 0:02:58.6]}
4. e3 {[%clk 0:03:00.6]} 4... Bd6 {[%clk 0:02:59]} 5. Bg3 {[%clk 0:03:00.7]}
5... O-O {[%clk 0:02:59.1]} 6. c4 {[%clk 0:03:00.6]} 6... c5 {[%clk 0:02:56.3]}
7. cxd5 {[%clk 0:02:58.1]} 7... Nxd5 {[%clk 0:02:55.6]} 8. Bd3 {[%clk
0:02:51.5]} 8... Nc6 {[%clk 0:02:52]} 9. O-O {[%clk 0:02:48.1]} 9... Bxg3 {[%clk
0:02:50.6]} 10. hxg3 {[%clk 0:02:46.9]} 10... cxd4 {[%clk 0:02:51.3]} 11. exd4
{[%clk 0:02:47.2]} 11... Bd7 {[%clk 0:02:38.3]} 12. Nc3 {[%clk 0:02:45.3]} 12...
Nxc3 {[%clk 0:02:37.3]} 13. bxc3 {[%clk 0:02:46.2]} 13... Rc8 {[%clk 0:02:37.9]}
14. Re1 {[%clk 0:02:44.4]} 14... Ne7 {[%clk 0:02:31.5]} 15. Rc1 {[%clk 0:02:40]}
15... Ng6 {[%clk 0:02:29.9]} 16. Ne5 {[%clk 0:02:24.9]} 16... Bc6 {[%clk
0:02:19.3]} 17. Qh5 {[%clk 0:02:19.1]} 17... Re8 {[%clk 0:01:54.5]} 18. Re3
{[%clk 0:02:07.1]} 18... Qd5 {[%clk 0:01:43.1]} 19. Qh3 {[%clk 0:01:23.1]} 19...
Re7 {[%clk 0:01:15.3]} 20. g4 {[%clk 0:01:11.3]} 20... Be8 {[%clk 0:01:02.5]}
21. Qh5 {[%clk 0:00:58.2]} 21... Rec7 {[%clk 0:00:40]} 22. Be4 {[%clk
0:00:47.7]} 22... Qa5 {[%clk 0:00:12.5]} 23. Rh3 {[%clk 0:00:47.2]} 23... Rxc3
{[%clk 0:00:12.9]} 24. Qxh7+ {[%clk 0:00:40.8]} 24... Kf8 {[%clk 0:00:13.3]} 25.
Rcxc3 {[%clk 0:00:27.2]} 25... Rxc3 {[%clk 0:00:14.2]} 26. Bxg6 {[%clk
0:00:27.4]} 26... Rxh3 {[%clk 0:00:11.6]} 27. gxh3 {[%clk 0:00:26.4]} 27... fxg6
{[%clk 0:00:09.8]} 28. Qh8+ {[%clk 0:00:26.9]} 28... Ke7 {[%clk 0:00:10.5]} 29.
Qxg7+ {[%clk 0:00:27.5]} 29... Kd8 {[%clk 0:00:10.9]} 30. Qxb7 {[%clk
0:00:26.5]} 30... Qxa2 {[%clk 0:00:07.5]} 31. Qb8+ {[%clk 0:00:20.7]} 31... Ke7
{[%clk 0:00:07.9]} 32. Qb4+ {[%clk 0:00:21.6]} 32... Kd8 {[%clk 0:00:07.7]} 33.
Qd6+ {[%clk 0:00:21.8]} 33... Kc8 {[%clk 0:00:08.4]} 34. Qf8 {[%clk 0:00:17.4]}
34... Qa4 {[%clk 0:00:03.5]} 35. Nxg6 {[%clk 0:00:17.6]} 35... Kb7 {[%clk
0:00:03.5]} 36. Qe7+ {[%clk 0:00:17.1]} 36... Kb8 {[%clk 0:00:03.4]} 37. Ne5
{[%clk 0:00:15.4]} 37... Qd1+ {[%clk 0:00:02.1]} 38. Kg2 {[%clk 0:00:14.8]}
38... Qa4 {[%clk 0:00:01.9]} 39. g5 {[%clk 0:00:13.8]} 39... Bb5 {[%clk
0:00:01.5]} 40. g6 {[%clk 0:00:10.9]} 40... Qxd4 {[%clk 0:00:01.6]} 41. Qg5
{[%clk 0:00:09.7]} 41... Qe4+ {[%clk 0:00:01.8]} 42. Kh2 {[%clk 0:00:10.1]}
42... Bc6 {[%clk 0:00:01.6]} 43. Nxc6+ {[%clk 0:00:07.7]} 43... Qxc6 {[%clk
0:00:02.5]} 44. g7 {[%clk 0:00:08.5]} 44... Qd6+ {[%clk 0:00:03.1]} 45. Qg3
{[%clk 0:00:08]} 1-0

[Event "*** SCC Grand Prix: Titled Tuesday Blitz"]
[Site "Chess.com"]
[Date "2020.09.08"]
[Round "4"]
[White "RobertoJBM"]
[Black "serhanberat_ozdemir"]
[Result "1-0"]
[WhiteElo "2678"]
[BlackElo "2472"]
[TimeControl "180+1"]
[EndTime "10:40:18 PDT"]
[Termination "RobertoJBM won on time"]

1. d4 {[%clk 0:02:59.1]} 1... Nf6 {[%clk 0:02:58.8]} 2. c4 {[%clk 0:02:58.6]}
2... g6 {[%clk 0:02:58.9]} 3. Nc3 {[%clk 0:02:58.6]} 3... Bg7 {[%clk 0:02:59.6]}
4. e4 {[%clk 0:02:58.4]} 4... d6 {[%clk 0:03:00]} 5. Nf3 {[%clk 0:02:58.3]} 5...
O-O {[%clk 0:03:00.5]} 6. Be2 {[%clk 0:02:58.7]} 6... Bg4 {[%clk 0:03:01]} 7.
Be3 {[%clk 0:02:57.4]} 7... Nfd7 {[%clk 0:03:00.3]} 8. Rc1 {[%clk 0:02:57.2]}
8... c5 {[%clk 0:02:59.8]} 9. d5 {[%clk 0:02:56]} 9... Na6 {[%clk 0:03:00.3]}
10. O-O {[%clk 0:02:54.6]} 10... Nc7 {[%clk 0:02:59.8]} 11. Nd2 {[%clk
0:02:54.3]} 11... Bxe2 {[%clk 0:02:59.3]} 12. Qxe2 {[%clk 0:02:55.2]} 12... a6
{[%clk 0:02:53.4]} 13. f4 {[%clk 0:02:47.4]} 13... e6 {[%clk 0:02:52.8]} 14.
dxe6 {[%clk 0:02:40.9]} 14... Nxe6 {[%clk 0:02:49.4]} 15. Nf3 {[%clk 0:02:40]}
15... Nd4 {[%clk 0:02:32.6]} 16. Qd3 {[%clk 0:02:36.3]} 16... Nxf3+ {[%clk
0:01:24.4]} 17. Rxf3 {[%clk 0:02:37.2]} 17... Bxc3 {[%clk 0:01:19.9]} 18. Rxc3
{[%clk 0:02:24.7]} 18... Qe7 {[%clk 0:01:20.3]} 19. Bf2 {[%clk 0:02:19.8]} 19...
Rfe8 {[%clk 0:01:18.8]} 20. Re3 {[%clk 0:02:19.3]} 20... Nf6 {[%clk 0:01:17.2]}
21. Bh4 {[%clk 0:02:19]} 21... Qe6 {[%clk 0:01:14.2]} 22. f5 {[%clk 0:01:47.5]}
22... gxf5 {[%clk 0:01:02]} 23. exf5 {[%clk 0:01:29.4]} 23... Qxe3+ {[%clk
0:00:59.8]} 24. Qxe3 {[%clk 0:01:30.3]} 24... Rxe3 {[%clk 0:01:00.2]} 25. Rxe3
{[%clk 0:01:30.9]} 25... Ne8 {[%clk 0:00:55.5]} 26. Re7 {[%clk 0:01:27.4]} 26...
b5 {[%clk 0:00:52.8]} 27. b3 {[%clk 0:01:19.6]} 27... Ng7 {[%clk 0:00:46.4]} 28.
g4 {[%clk 0:01:19.2]} 28... bxc4 {[%clk 0:00:21.1]} 29. bxc4 {[%clk 0:01:19]}
29... h5 {[%clk 0:00:19.1]} 30. h3 {[%clk 0:01:17.9]} 30... hxg4 {[%clk
0:00:18.1]} 31. hxg4 {[%clk 0:01:18.8]} 31... Rb8 {[%clk 0:00:17.2]} 32. Bf6
{[%clk 0:01:14.8]} 32... Rb4 {[%clk 0:00:06.5]} 33. Kf2 {[%clk 0:01:10.6]} 33...
Rxc4 {[%clk 0:00:06.9]} 34. Kg3 {[%clk 0:01:09.7]} 34... Ra4 {[%clk 0:00:05.4]}
35. Rd7 {[%clk 0:01:07.5]} 35... Ra3+ {[%clk 0:00:03.9]} 36. Kf4 {[%clk
0:01:06.3]} 36... Ne8 {[%clk 0:00:01.7]} 37. Rd8 {[%clk 0:00:51.2]} 37... Ra4+
{[%clk 0:00:02.1]} 38. Kf3 {[%clk 0:00:45.4]} 38... Kf8 {[%clk 0:00:02.1]} 39.
g5 {[%clk 0:00:45]} 39... Ra3+ {[%clk 0:00:02.6]} 40. Kf4 {[%clk 0:00:43.9]}
40... Ra4+ {[%clk 0:00:03.1]} 41. Kf3 {[%clk 0:00:41.6]} 41... Ra3+ {[%clk
0:00:03.4]} 42. Ke4 {[%clk 0:00:14.8]} 42... Ra4+ {[%clk 0:00:03.6]} 43. Kd5
{[%clk 0:00:15.3]} 43... Rf4 {[%clk 0:00:03.1]} 44. Kc6 {[%clk 0:00:15.6]} 44...
Rxf5 {[%clk 0:00:02.9]} 45. Kd7 {[%clk 0:00:15.6]} 1-0

[Event "*** SCC Grand Prix: Titled Tuesday Blitz"]
[Site "Chess.com"]
[Date "2020.09.08"]
[Round "4"]
[White "GelmanAlexander"]
[Black "OscarAng"]
[Result "1-0"]
[WhiteElo "2511"]
[BlackElo "2239"]
[TimeControl "180+1"]
[EndTime "10:40:19 PDT"]
[Termination "GelmanAlexander won by resignation"]

1. d4 {[%clk 0:03:00.9]} 1... d5 {[%clk 0:02:58.4]} 2. Nc3 {[%clk 0:03:00.8]}
2... Nf6 {[%clk 0:02:56.9]} 3. Bf4 {[%clk 0:03:00.3]} 3... c5 {[%clk 0:02:56]}
4. e3 {[%clk 0:02:59.6]} 4... Nc6 {[%clk 0:02:51.5]} 5. Nb5 {[%clk 0:02:58.6]}
5... e5 {[%clk 0:02:12.1]} 6. dxe5 {[%clk 0:02:58.5]} 6... a6 {[%clk 0:02:07.2]}
7. Nc3 {[%clk 0:02:08]} 7... d4 {[%clk 0:02:06.3]} 8. exf6 {[%clk 0:01:56.6]}
8... dxc3 {[%clk 0:02:06.3]} 9. Qxd8+ {[%clk 0:01:56.9]} 9... Kxd8 {[%clk
0:02:06.6]} 10. bxc3 {[%clk 0:01:54.4]} 10... gxf6 {[%clk 0:02:04]} 11. O-O-O+
{[%clk 0:01:51.6]} 11... Ke8 {[%clk 0:02:03.2]} 12. Bc4 {[%clk 0:01:36.3]} 12...
Be6 {[%clk 0:02:03.6]} 13. Bd5 {[%clk 0:01:33.4]} 13... Rc8 {[%clk 0:01:50.1]}
14. Ne2 {[%clk 0:01:23.3]} 14... b5 {[%clk 0:01:44.5]} 15. e4 {[%clk 0:01:18.7]}
15... h5 {[%clk 0:01:37.5]} 16. Ng3 {[%clk 0:01:14.2]} 16... Bg4 {[%clk
0:01:31.2]} 17. f3 {[%clk 0:01:11]} 17... Be6 {[%clk 0:01:28.4]} 18. Rhe1 {[%clk
0:01:10.5]} 18... h4 {[%clk 0:01:28]} 19. Nf5 {[%clk 0:01:10.1]} 19... Ne5
{[%clk 0:01:21.8]} 20. Bxe5 {[%clk 0:00:43.6]} 20... fxe5 {[%clk 0:01:17.6]} 21.
Bxe6 {[%clk 0:00:37.9]} 21... fxe6 {[%clk 0:01:15.2]} 22. Nd6+ {[%clk
0:00:38.8]} 22... Bxd6 {[%clk 0:00:46.2]} 23. Rxd6 {[%clk 0:00:39.7]} 23... Ke7
{[%clk 0:00:26.1]} 24. Rxa6 {[%clk 0:00:39.5]} 24... Rhg8 {[%clk 0:00:18.7]} 25.
Re2 {[%clk 0:00:39.8]} 25... Ra8 {[%clk 0:00:13.2]} 26. Rxa8 {[%clk 0:00:37.5]}
26... Rxa8 {[%clk 0:00:14.1]} 27. Kb2 {[%clk 0:00:37.9]} 27... Rg8 {[%clk
0:00:13.6]} 28. Rd2 {[%clk 0:00:36.5]} 28... h3 {[%clk 0:00:13.6]} 29. g3 {[%clk
0:00:35.8]} 29... Rf8 {[%clk 0:00:13.9]} 30. Rf2 {[%clk 0:00:32.7]} 30... Kd6
{[%clk 0:00:13.4]} 31. f4 {[%clk 0:00:30]} 31... exf4 {[%clk 0:00:14.3]} 32.
Rxf4 {[%clk 0:00:30]} 32... Rd8 {[%clk 0:00:10.9]} 33. Rh4 {[%clk 0:00:27.4]}
33... Ke7 {[%clk 0:00:10.6]} 34. Rxh3 {[%clk 0:00:27.4]} 34... Rd2 {[%clk
0:00:10.6]} 35. Rh5 {[%clk 0:00:27.7]} 35... Kd6 {[%clk 0:00:09.6]} 36. h4
{[%clk 0:00:26.6]} 36... Rg2 {[%clk 0:00:09.8]} 37. Rg5 {[%clk 0:00:27.2]} 37...
Rh2 {[%clk 0:00:09.8]} 38. h5 {[%clk 0:00:27.3]} 38... Rh3 {[%clk 0:00:10.7]}
39. g4 {[%clk 0:00:27.6]} 39... Ke7 {[%clk 0:00:11.4]} 40. Rg6 {[%clk
0:00:27.9]} 40... Kf7 {[%clk 0:00:11.5]} 41. e5 {[%clk 0:00:27.1]} 41... Rh4
{[%clk 0:00:11.5]} 42. c4 {[%clk 0:00:26.1]} 42... b4 {[%clk 0:00:11.1]} 43. a3
{[%clk 0:00:26.5]} 43... Rh3 {[%clk 0:00:12]} 44. axb4 {[%clk 0:00:26.7]} 44...
cxb4 {[%clk 0:00:12.7]} 45. c5 {[%clk 0:00:27.3]} 45... Rc3 {[%clk 0:00:12.4]}
46. g5 {[%clk 0:00:25]} 46... Rxc5 {[%clk 0:00:12.3]} 47. Rf6+ {[%clk
0:00:25.6]} 47... Ke7 {[%clk 0:00:12.7]} 48. h6 {[%clk 0:00:26.1]} 48... Rxe5
{[%clk 0:00:13.2]} 49. Rg6 {[%clk 0:00:25.4]} 49... Re4 {[%clk 0:00:12.5]} 50.
Rg7+ {[%clk 0:00:25.2]} 50... Kd6 {[%clk 0:00:11.7]} 51. h7 {[%clk 0:00:25.3]}
51... Rh4 {[%clk 0:00:12.2]} 52. g6 {[%clk 0:00:25.5]} 52... e5 {[%clk
0:00:12.4]} 53. Rg8 {[%clk 0:00:26]} 53... e4 {[%clk 0:00:12.4]} 54. h8=Q {[%clk
0:00:26.5]} 54... Rxh8 {[%clk 0:00:10.5]} 55. Rxh8 {[%clk 0:00:27.4]} 55... e3
{[%clk 0:00:10.9]} 56. Re8 {[%clk 0:00:27.6]} 56... b3 {[%clk 0:00:10.7]} 57.
Rxe3 {[%clk 0:00:27.3]} 57... bxc2 {[%clk 0:00:11.6]} 58. Kxc2 {[%clk
0:00:27.4]} 1-0

[Event "*** SCC Grand Prix: Titled Tuesday Blitz"]
[Site "Chess.com"]
[Date "2020.09.08"]
[Round "4"]
[White "Meri-Arabidze"]
[Black "Parhamov"]
[Result "0-1"]
[WhiteElo "2560"]
[BlackElo "2991"]
[TimeControl "180+1"]
[EndTime "10:40:20 PDT"]
[Termination "Parhamov won on time"]

1. d4 {[%clk 0:03:00.9]} 1... Nf6 {[%clk 0:02:57.2]} 2. c4 {[%clk 0:03:00.9]}
2... e6 {[%clk 0:02:54.2]} 3. Nf3 {[%clk 0:03:00.4]} 3... d5 {[%clk 0:02:53.8]}
4. Nc3 {[%clk 0:03:00.2]} 4... dxc4 {[%clk 0:02:54.4]} 5. e3 {[%clk 0:02:55.5]}
5... a6 {[%clk 0:02:54.3]} 6. a4 {[%clk 0:02:54.3]} 6... b6 {[%clk 0:02:49.3]}
7. Bxc4 {[%clk 0:02:54.2]} 7... Bb7 {[%clk 0:02:48.8]} 8. O-O {[%clk 0:02:54.8]}
8... Bb4 {[%clk 0:02:42.1]} 9. Bd2 {[%clk 0:02:52]} 9... O-O {[%clk 0:02:41.3]}
10. Rc1 {[%clk 0:02:51.6]} 10... Qe7 {[%clk 0:02:38]} 11. Qe2 {[%clk 0:02:42.8]}
11... Nc6 {[%clk 0:02:34.9]} 12. Rfd1 {[%clk 0:02:39.5]} 12... Na5 {[%clk
0:02:34.5]} 13. Ba2 {[%clk 0:02:30.9]} 13... Rfd8 {[%clk 0:02:34.1]} 14. Nb1
{[%clk 0:02:22.2]} 14... Rac8 {[%clk 0:02:07.6]} 15. Qe1 {[%clk 0:02:04.7]}
15... Bxd2 {[%clk 0:01:54.8]} 16. Nbxd2 {[%clk 0:02:05.6]} 16... Nc6 {[%clk
0:01:54.8]} 17. Nc4 {[%clk 0:02:01.5]} 17... Nb4 {[%clk 0:01:53.6]} 18. Bb1
{[%clk 0:02:00.8]} 18... Bxf3 {[%clk 0:01:44]} 19. gxf3 {[%clk 0:02:01.7]} 19...
Nd7 {[%clk 0:01:43.9]} 20. f4 {[%clk 0:01:42.3]} 20... g6 {[%clk 0:01:41.8]} 21.
Ne5 {[%clk 0:01:41.4]} 21... Nxe5 {[%clk 0:01:41.2]} 22. dxe5 {[%clk 0:01:31.5]}
22... a5 {[%clk 0:01:37.9]} 23. Be4 {[%clk 0:01:26.9]} 23... Rxd1 {[%clk
0:01:37.6]} 24. Rxd1 {[%clk 0:01:25]} 24... Rd8 {[%clk 0:01:37.9]} 25. Rd4
{[%clk 0:01:15.4]} 25... Rxd4 {[%clk 0:01:34.2]} 26. exd4 {[%clk 0:01:15.3]}
26... Qd7 {[%clk 0:01:34.6]} 27. Qc3 {[%clk 0:00:59.2]} 27... Qxa4 {[%clk
0:01:30.8]} 28. Qxc7 {[%clk 0:00:48.7]} 28... Qd1+ {[%clk 0:01:30.5]} 29. Kg2
{[%clk 0:00:49.1]} 29... Qg4+ {[%clk 0:01:18.8]} 30. Kf1 {[%clk 0:00:44.3]}
30... Qd1+ {[%clk 0:00:41.9]} 31. Kg2 {[%clk 0:00:43.2]} 31... Qxd4 {[%clk
0:00:42.2]} 32. Kf3 {[%clk 0:00:32.3]} 32... h5 {[%clk 0:00:35.1]} 33. h3 {[%clk
0:00:20.5]} 33... Kg7 {[%clk 0:00:27.8]} 34. Qe7 {[%clk 0:00:20.1]} 34... Nd5
{[%clk 0:00:18.4]} 35. Bxd5 {[%clk 0:00:16.7]} 35... Qxd5+ {[%clk 0:00:18.5]}
36. Kg3 {[%clk 0:00:17.2]} 36... b5 {[%clk 0:00:18.9]} 37. Qf6+ {[%clk
0:00:12.1]} 37... Kg8 {[%clk 0:00:19.2]} 38. Kh4 {[%clk 0:00:11]} 38... Qg2
{[%clk 0:00:11.5]} 39. Qe7 {[%clk 0:00:02.5]} 39... Qxf2+ {[%clk 0:00:09.7]} 40.
Kg5 {[%clk 0:00:01.8]} 40... Qg3+ {[%clk 0:00:10.3]} 0-1

[Event "*** SCC Grand Prix: Titled Tuesday Blitz"]
[Site "Chess.com"]
[Date "2020.09.08"]
[Round "4"]
[White "Tactictic"]
[Black "Volodar_Murzin"]
[Result "1-0"]
[WhiteElo "2362"]
[BlackElo "2613"]
[TimeControl "180+1"]
[EndTime "10:40:20 PDT"]
[Termination "Tactictic won on time"]

1. e4 {[%clk 0:03:00.9]} 1... c5 {[%clk 0:02:54.8]} 2. Nf3 {[%clk 0:03:01.1]}
2... d6 {[%clk 0:02:54]} 3. d4 {[%clk 0:03:02]} 3... cxd4 {[%clk 0:02:53.6]} 4.
Nxd4 {[%clk 0:03:02.9]} 4... Nf6 {[%clk 0:02:53.4]} 5. Nc3 {[%clk 0:03:02.6]}
5... a6 {[%clk 0:02:53.5]} 6. Be3 {[%clk 0:02:59.8]} 6... e5 {[%clk 0:02:52]} 7.
Nf3 {[%clk 0:02:59.2]} 7... Be7 {[%clk 0:02:50.1]} 8. Bc4 {[%clk 0:02:58.7]}
8... O-O {[%clk 0:02:49.8]} 9. O-O {[%clk 0:02:56.7]} 9... Nc6 {[%clk
0:02:50.2]} 10. Bg5 {[%clk 0:02:39.1]} 10... Be6 {[%clk 0:02:45.6]} 11. Bb3
{[%clk 0:02:38]} 11... Nd7 {[%clk 0:02:39.8]} 12. Bxe7 {[%clk 0:02:32.2]} 12...
Qxe7 {[%clk 0:02:40.7]} 13. Nd5 {[%clk 0:02:31.2]} 13... Bxd5 {[%clk 0:02:39]}
14. Bxd5 {[%clk 0:02:31.4]} 14... Nf6 {[%clk 0:02:36.7]} 15. c3 {[%clk
0:02:26.2]} 15... Rac8 {[%clk 0:02:31.2]} 16. Qd3 {[%clk 0:02:22.6]} 16... Rfd8
{[%clk 0:02:24.2]} 17. Nd2 {[%clk 0:02:20.3]} 17... Nxd5 {[%clk 0:02:09]} 18.
Qxd5 {[%clk 0:02:17.2]} 18... Qe6 {[%clk 0:02:06.6]} 19. Qxe6 {[%clk 0:02:09.7]}
19... fxe6 {[%clk 0:02:05.9]} 20. Rad1 {[%clk 0:02:08.8]} 20... b5 {[%clk
0:02:03.5]} 21. Nf3 {[%clk 0:02:05.5]} 21... h6 {[%clk 0:01:48.6]} 22. Rd2
{[%clk 0:01:51.8]} 22... Kf7 {[%clk 0:01:45.6]} 23. Rfd1 {[%clk 0:01:49.4]}
23... Ke7 {[%clk 0:01:44.9]} 24. h4 {[%clk 0:01:32.9]} 24... g6 {[%clk
0:01:41.3]} 25. g3 {[%clk 0:01:29.5]} 25... Rd7 {[%clk 0:01:37.5]} 26. Kg2
{[%clk 0:01:26.3]} 26... Rf8 {[%clk 0:01:22.1]} 27. Nh2 {[%clk 0:01:23.9]} 27...
Nd8 {[%clk 0:01:18.3]} 28. Ng4 {[%clk 0:01:16.6]} 28... Nf7 {[%clk 0:01:16.3]}
29. f4 {[%clk 0:01:01.2]} 29... exf4 {[%clk 0:01:14.6]} 30. gxf4 {[%clk
0:01:02.1]} 30... Rc7 {[%clk 0:01:14.6]} 31. Ne3 {[%clk 0:00:47.6]} 31... Rc5
{[%clk 0:01:01.8]} 32. e5 {[%clk 0:00:29.7]} 32... d5 {[%clk 0:00:56.9]} 33. Rd4
{[%clk 0:00:18]} 33... h5 {[%clk 0:00:48.6]} 34. R1d3 {[%clk 0:00:17.7]} 34...
Nh6 {[%clk 0:00:42.7]} 35. b3 {[%clk 0:00:12.8]} 35... Rfc8 {[%clk 0:00:14]} 36.
c4 {[%clk 0:00:09.3]} 36... bxc4 {[%clk 0:00:07.8]} 37. bxc4 {[%clk 0:00:09.7]}
37... dxc4 {[%clk 0:00:06.8]} 38. Rd7+ {[%clk 0:00:09.9]} 38... Kf8 {[%clk
0:00:07.5]} 39. R3d6 {[%clk 0:00:09.3]} 39... R5c6 {[%clk 0:00:05.7]} 40. Rd8+
{[%clk 0:00:05.1]} 40... Rxd8 {[%clk 0:00:03.3]} 41. Rxc6 {[%clk 0:00:05.4]} 1-0